bitfinex-derivatives/quotes_BTCF0:USTF0_20241218
["timestamp","ask_amount","ask_price","bid_price","bid_amount"]
[1734552509404,0.049514,101030.0,100960.0,0.2024]
[1734552509405,0.410322,101010.0,101000.0,0.7198991]
[1734552509708,0.7216,101010.0,100960.0,0.3608]
[1734552510006,0.3608,101030.0,101000.0,0.3608]
[1734552510206,0.3608,101040.0,100990.0,0.3608]
[1734552510408,0.3608,101020.0,100980.0,0.3608]
[1734552510612,0.3608,101020.0,100960.0,0.00198098]
[1734552510613,0.3608,101000.0,100960.0,0.00198098]
[1734552510910,0.3608,100980.0,100920.0,0.61401952]
[1734552511105,0.3608,100960.0,100930.0,0.44079893]
[1734552511613,0.3608,100970.0,100930.0,0.80559893]
[1734552511806,0.37568,100970.0,100940.0,0.3608]
[1734552512005,0.3608,101010.0,100950.0,0.00198117]
[1734552512312,0.049509,101040.0,101000.0,0.3608]
[1734552512611,0.049501,101050.0,101020.0,0.3608]
[1734552512915,0.3,101050.0,101000.0,0.3608]
[1734552513109,0.38038324,101030.0,100980.0,0.410329]
[1734552513407,0.01958324,101030.0,101010.0,0.3608]
[1734552513612,0.049498,101050.0,101020.0,0.3608]
[1734552513801,0.4608,101100.0,101040.0,0.3]
[1734552514007,0.049497,101050.0,101040.0,0.61203854]
[1734552514203,0.4608,101100.0,101040.0,0.3608]
[1734552514409,0.02009598,101050.0,101040.0,0.3608]
[1734552514607,0.02009598,101050.0,101020.0,0.2054]
[1734552514608,0.02009598,101050.0,101020.0,0.3608]
[1734552514806,0.02009598,101050.0,101030.0,0.3608]
[1734552515000,0.06885744,101050.0,101030.0,0.3608]
[1734552515207,0.06885744,101050.0,101020.0,0.3608]
[1734552515208,0.43039398,101050.0,100990.0,0.3608]
[1734552515413,0.410303,101040.0,100990.0,0.3608]
[1734552515611,0.3608,101010.0,100960.0,0.5583]
[1734552515809,0.3608,100990.0,100960.0,0.3608]
[1734552516004,0.3608,100970.0,100910.0,0.5674]
[1734552516210,0.3608,100980.0,100920.0,0.3608]
[1734552516417,0.3608,100960.0,100930.0,0.2066]
[1734552516613,0.3608,100950.0,100930.0,0.2066]
[1734552516919,0.3608,100940.0,100900.0,0.05123854]
[1734552517216,0.3608,100950.0,100930.0,0.3608]
[1734552517412,0.3608,100990.0,100940.0,0.3608]
[1734552517612,0.3608,100990.0,100950.0,0.2066]
[1734552517914,0.3608,100960.0,100900.0,0.41603854]
[1734552518115,0.3608,100930.0,100900.0,0.35523854]
[1734552518316,0.40956146,100960.0,100910.0,0.3608]
[1734552518512,0.04876146,100960.0,100940.0,0.3608]
[1734552518812,0.3608,100950.0,100910.0,0.7919]
[1734552519023,0.3608,100940.0,100910.0,0.4311]
[1734552519218,0.3608,100930.0,100910.0,0.7919]
[1734552519419,0.3608,100930.0,100900.0,0.05523854]
[1734552519713,0.3608,100910.0,100900.0,0.05523854]
[1734552519914,0.7216,100910.0,100900.0,0.05684341]
[1734552520116,0.77036146,100910.0,100900.0,0.00808195]
[1734552520317,0.77036146,100910.0,100900.0,0.00560487]
[1734552520518,0.81992246,100910.0,100850.0,0.2002]
[1734552520715,0.3608,100870.0,100840.0,0.3658]
[1734552521220,0.3608,100860.0,100840.0,0.005]
[1734552521519,0.3608,100850.0,100840.0,0.005]
[1734552521721,0.3608,100850.0,100800.0,0.4578]
[1734552521910,0.3608,100820.0,100800.0,0.4578]
[1734552522110,0.3608,100810.0,100800.0,0.097]
[1734552522516,0.06144705,100810.0,100790.0,0.01914945]
[1734552522718,0.3608,100860.0,100800.0,0.3608]
[1734552522914,0.3608,100950.0,100860.0,0.3608]
[1734552523110,0.3124515,100970.0,100910.0,0.3608]
[1734552523317,0.3124515,100970.0,100860.0,0.3608]
[1734552523318,0.049556,100920.0,100860.0,0.3608]
[1734552523510,0.3608,100910.0,100870.0,0.3608]
[1734552523821,0.3608,100880.0,100830.0,0.3608]
[1734552524019,0.72259867,100910.0,100850.0,0.410388]
[1734552524222,0.3608,100900.0,100860.0,0.3608]
[1734552524520,0.3608,100920.0,100890.0,0.3608]
[1734552524717,0.3608,100920.0,100870.0,0.3608]
[1734552524915,0.7216,100880.0,100830.0,0.3608]
[1734552525110,0.3608,100860.0,100840.0,0.3]
[1734552525316,0.3608,100870.0,100840.0,0.3608]
[1734552525623,0.3608,100870.0,100840.0,0.6608]
[1734552525819,0.3608,100900.0,100840.0,0.6608]
[1734552526021,0.3608,100870.0,100840.0,0.3608]
[1734552526325,0.7216,100850.0,100790.0,0.37994945]
[1734552526538,0.3608,100810.0,100780.0,0.3608]
[1734552526825,0.3608,100820.0,100780.0,0.33844264]
[1734552527021,0.3608,100790.0,100750.0,0.3608]
[1734552527217,0.3608,100760.0,100720.0,0.3608]
[1734552527419,0.3608,100730.0,100700.0,0.1]
[1734552527719,0.3,100790.0,100720.0,0.004]
[1734552527720,0.3608,100760.0,100720.0,0.004]
[1734552527920,0.3608,100780.0,100720.0,0.3648]
[1734552528114,0.3608,100800.0,100750.0,0.3608]
[1734552528313,0.3608,100780.0,100750.0,0.3608]
[1734552528516,0.6608,100780.0,100740.0,0.3608]
[1734552528817,0.3608,100750.0,100710.0,0.049657]
[1734552529020,0.3608,100780.0,100740.0,0.7216]
[1734552529319,0.3608,100790.0,100750.0,0.710438]
[1734552529621,0.3608,100790.0,100760.0,0.3608]
[1734552529821,0.3608,100770.0,100730.0,0.3608]
[1734552530020,0.3608,100790.0,100750.0,0.3608]
[1734552530317,0.3,100800.0,100760.0,0.3608]
[1734552530629,0.3608,100790.0,100750.0,0.3608]
[1734552531026,0.3608,100790.0,100760.0,0.3608]
[1734552531321,0.3608,100770.0,100710.0,0.3608]
[1734552531519,0.3608,100740.0,100700.0,0.4]
[1734552531721,0.3608,100760.0,100700.0,0.7608]
[1734552531924,0.3608,100760.0,100730.0,0.3608]
[1734552532119,0.3608,100760.0,100730.0,0.30956213]
[1734552532319,0.3608,100740.0,100700.0,0.4608]
[1734552532625,0.3608,100710.0,100700.0,0.1]
[1734552532824,0.64305007,100760.0,100700.0,0.810464]
[1734552532825,0.3608,100730.0,100700.0,0.810464]
[1734552533122,0.3608,100820.0,100740.0,0.3608]
[1734552533328,0.3608,100780.0,100760.0,0.3608]
[1734552533523,0.3608,100780.0,100760.0,0.3]
[1734552533719,0.3608,100790.0,100760.0,0.6608]
[1734552533921,0.3608,100850.0,100780.0,0.7216]
[1734552534121,0.3608,100840.0,100810.0,0.3608]
[1734552534320,0.00198353,100830.0,100810.0,0.3608]
[1734552534522,1e-08,100830.0,100820.0,0.7216]
[1734552534720,0.049581,100870.0,100820.0,0.7216]
[1734552534919,0.70385007,100920.0,100860.0,0.3608]
[1734552535120,0.04958,100870.0,100860.0,0.3608]
[1734552535325,0.3608,100890.0,100860.0,0.25123854]
[1734552535520,0.049574,100890.0,100880.0,0.7216]
[1734552535725,0.3608,100930.0,100880.0,0.7216]
[1734552535929,0.049571,100890.0,100880.0,0.6608]
[1734552536323,0.3608,100940.0,100880.0,0.6608]
[1734552536524,0.3608,100950.0,100920.0,0.3608]
[1734552536729,0.0005,100970.0,100920.0,0.3608]
[1734552536918,0.0005,100970.0,100960.0,0.049274]
[1734552537125,0.3613,100970.0,100930.0,0.3608]
[1734552537323,0.049541,100940.0,100930.0,0.3608]
[1734552537527,1.18372047,100970.0,100930.0,0.3608]
[1734552537726,0.049541,100940.0,100930.0,0.3]
[1734552538026,0.1,101000.0,100930.0,0.6608]
[1734552538218,0.049536,100950.0,100940.0,0.6608]
[1734552538418,0.3608,100980.0,100930.0,0.3608]
[1734552538631,0.049545,100940.0,100930.0,0.3608]
[1734552538928,0.3613,100960.0,100950.0,0.049536]
[1734552539121,0.1,101000.0,100950.0,1.0216]
[1734552539122,0.4608,101000.0,100950.0,1.0216]
[1734552539318,0.3608,100990.0,100970.0,0.049524]
[1734552539526,0.049532,100960.0,100920.0,0.4034175]
[1734552539733,0.0005,100960.0,100920.0,0.6608]
[1734552539920,0.1,101000.0,100950.0,0.3608]
[1734552540125,0.1,101000.0,100990.0,0.3608]
[1734552540328,0.3608,101090.0,100990.0,0.7216]
[1734552540530,0.00197902,101060.0,101030.0,0.3608]
[1734552540726,0.049494,101040.0,101030.0,0.3]
[1734552540929,0.3608,101050.0,101010.0,0.176455]
[1734552541122,0.31227102,101060.0,101020.0,0.3608]
[1734552541323,0.21898588,101070.0,101050.0,0.3608]
[1734552541538,0.049482,101060.0,101050.0,0.3]
[1734552541730,0.57978588,101070.0,101050.0,1.16510176]
[1734552541731,0.21898588,101070.0,101050.0,1.16510176]
[1734552541931,0.1,101100.0,101060.0,0.3608]
[1734552542134,0.1,101100.0,101090.0,0.3608]
[1734552542537,0.3608,101140.0,101090.0,1.0146695]
[1734552542831,0.049458,101110.0,101070.0,0.410274]
[1734552543030,0.049451,101130.0,101100.0,0.3608]
[1734552543332,0.3608,101130.0,101100.0,0.3]
[1734552543537,0.3608,101150.0,101120.0,0.3608]
[1734552543732,0.3608,101150.0,101100.0,0.3]
[1734552543927,0.410255,101120.0,101090.0,0.3608]
[1734552544128,0.36277745,101140.0,101090.0,0.6608]
[1734552544337,0.049448,101130.0,101100.0,0.3608]
[1734552544536,0.3608,101120.0,101090.0,0.61203854]
[1734552544840,0.3608,101160.0,101110.0,0.3608]
[1734552545024,0.3608,101170.0,101140.0,0.3608]
[1734552545234,0.3608,101160.0,101140.0,0.3608]
[1734552545539,0.1,101200.0,101130.0,0.049447]
[1734552545540,0.7216,101150.0,101130.0,0.049447]
[1734552545837,0.3608,101140.0,101130.0,0.349447]
[1734552546038,0.3608,101150.0,101100.0,0.7146695]
[1734552546225,0.3608,101150.0,101100.0,1.0146695]
[1734552546633,0.3608784,101150.0,101100.0,1.01473972]
[1734552546942,7.84e-05,101150.0,101110.0,0.3608]
[1734552547245,0.3608,101180.0,101140.0,0.7641125]
[1734552547435,0.3608,101180.0,101140.0,0.7146695]
[1734552547629,0.3608,101180.0,101170.0,0.049429]
[1734552547941,0.7216,101180.0,101170.0,0.049429]
[1734552548135,0.3608,101190.0,101170.0,0.3608]
[1734552548435,0.1,101200.0,101190.0,0.049419]
[1734552548627,0.4608,101200.0,101190.0,0.049419]
[1734552548832,0.1,101200.0,101190.0,0.34951974]
[1734552549028,0.3608,101250.0,101220.0,0.049404]
[1734552549229,0.3608,101240.0,101220.0,0.049404]
[1734552549433,0.3608,101230.0,101220.0,0.3]
[1734552549733,0.3608,101270.0,101260.0,0.049383]
[1734552549935,0.3608,101290.0,101240.0,0.3608]
[1734552550127,0.3608,101290.0,101220.0,0.6608]
[1734552550128,0.13894127,101270.0,101260.0,0.45615296]
[1734552550443,0.16672952,101280.0,101260.0,0.7681915]
[1734552550639,0.00012501,101290.0,101280.0,0.049375]
[1734552550939,0.19451777,101280.0,101260.0,0.7681915]
[1734552551138,0.19451777,101280.0,101260.0,0.3]
[1734552551435,0.2424733,101290.0,101260.0,0.3]
[1734552551635,0.63868254,101310.0,101260.0,0.3]
[1734552551636,0.27788254,101310.0,101280.0,0.7146695]
[1734552551830,0.27788254,101310.0,101290.0,0.3654]
[1734552552031,0.27788254,101310.0,101290.0,0.48801629]
[1734552552032,0.63875241,101310.0,101290.0,0.48801629]
[1734552552227,0.24276192,101300.0,101290.0,0.48801629]
[1734552552435,0.22343677,101300.0,101290.0,0.48801629]
[1734552552640,0.3608,101340.0,101290.0,0.84881629]
[1734552552833,0.3608,101340.0,101310.0,0.3608]
[1734552553144,0.3612473,101380.0,101330.0,0.3608]
[1734552553145,0.3608,101380.0,101330.0,0.3608]
[1734552553436,0.3608,101380.0,101370.0,0.34808661]
[1734552553437,0.39560749,101380.0,101370.0,0.34808661]
[1734552553627,0.01928957,101380.0,101330.0,0.6608]
[1734552553833,0.36080044,101370.0,101360.0,0.04934]
[1734552554033,0.7216,101370.0,101340.0,0.00012529]
[1734552554235,5.3e-07,101360.0,101340.0,0.6608]
[1734552554540,0.38019577,101380.0,101340.0,0.6608]
[1734552554735,0.01939577,101380.0,101360.0,0.3608]
[1734552554935,0.01939577,101380.0,101340.0,0.3608]
[1734552555140,2e-07,101380.0,101370.0,0.049335]
[1734552555345,0.1,101400.0,101370.0,0.349335]
[1734552555542,0.1,101400.0,101390.0,0.049325]
[1734552556041,0.1,101400.0,101360.0,0.61603737]
[1734552556240,0.1,101400.0,101390.0,0.410125]
[1734552556630,0.1,101400.0,101390.0,0.349325]
[1734552556836,1e-06,101400.0,101390.0,0.349325]
[1734552557036,9.089e-05,101400.0,101390.0,0.349325]
[1734552557232,8.9e-07,101400.0,101390.0,0.410125]
[1734552557640,8.9e-07,101400.0,101390.0,0.710125]
[1734552558046,0.11051346,101430.0,101420.0,0.049312]
[1734552558243,4.6e-07,101450.0,101440.0,0.049302]
[1734552559043,4.6e-07,101450.0,101440.0,0.0493984]
[1734552559232,0.58184113,101480.0,101440.0,0.3608964]
[1734552559434,0.01702325,101470.0,101460.0,0.049289]
[1734552559749,0.58184113,101480.0,101430.0,0.3608]
[1734552559750,0.58677376,101480.0,101470.0,0.049287]
[1734552559935,0.08263601,101480.0,101470.0,0.049287]
[1734552560540,0.08757007,101480.0,101460.0,0.3608]
[1734552560840,0.08263601,101480.0,101470.0,0.00011466]
[1734552561041,0.004934,101480.0,101470.0,0.04940166]
[1734552561247,0.01552404,101480.0,101450.0,0.3608]
[1734552561446,0.41772139,101490.0,101450.0,0.3608]
[1734552561640,0.41772213,101490.0,101480.0,0.049283]
[1734552561841,0.41278739,101490.0,101450.0,0.3608]
[1734552562140,0.3608,101480.0,101470.0,0.049287]
[1734552562350,0.36140306,101490.0,101470.0,0.00054374]
[1734552562553,0.3608,101480.0,101470.0,0.04991422]
[1734552562741,0.3608,101480.0,101440.0,0.049302]
[1734552562940,0.3608,101480.0,101470.0,0.049287]
[1734552563745,2.99074867,101480.0,101420.0,0.410107]
[1734552563936,0.3608,101440.0,101430.0,0.049307]
[1734552564346,0.3608,101460.0,101450.0,0.01966424]
[1734552564542,0.3608,101440.0,101420.0,0.23303]
[1734552564741,0.3608,101440.0,101420.0,0.28234]
[1734552564742,0.3608,101430.0,101420.0,0.28234]
[1734552565045,0.3608,101430.0,101420.0,0.28241812]
[1734552565246,0.3608,101420.0,101380.0,0.2007]
[1734552565448,0.7216,101390.0,101380.0,0.049331]
[1734552565647,0.7216,101390.0,101350.0,0.29033729]
[1734552565851,2.76969528,101390.0,101350.0,0.24086663]
[1734552566055,0.3608,101350.0,101320.0,0.2105]
[1734552566250,0.7216,101330.0,101320.0,0.25986]
[1734552566441,0.6608,101330.0,101290.0,0.34840475]
[1734552566641,0.3608,101320.0,101310.0,0.049365]
[1734552566847,0.3608,101370.0,101310.0,0.3608]
[1734552567049,0.3608,101370.0,101350.0,0.049344]
[1734552567350,0.3608,101360.0,101340.0,0.3608]
[1734552567542,0.00056001,101370.0,101350.0,0.36088083]
[1734552567741,7.627e-05,101380.0,101370.0,0.049336]
[1734552568253,0.08268626,101390.0,101370.0,0.6608]
[1734552568446,0.01,101420.0,101380.0,0.3608]
[1734552568749,0.08271947,101420.0,101410.0,0.3608]
[1734552569052,0.03012038,101450.0,101400.0,0.3608]
[1734552569242,0.55376251,101470.0,101410.0,0.3608]
[1734552569438,0.19304308,101470.0,101450.0,0.3608]
[1734552569639,0.01411437,101490.0,101460.0,0.3608]
[1734552569843,0.11411437,101500.0,101480.0,0.3608]
[1734552570051,0.1,101500.0,101490.0,0.410078]
[1734552570244,0.1,101500.0,101490.0,0.3608]
[1734552570552,0.1,101500.0,101490.0,0.41016327]
[1734552570854,0.1,101500.0,101490.0,0.81426354]
[1734552571049,0.1,101500.0,101490.0,1.07096327]
[1734552571249,7.016e-05,101520.0,101510.0,0.049268]
[1734552571451,4e-05,101560.0,101510.0,0.049268]
[1734552571452,4e-05,101560.0,101510.0,0.7216]
[1734552571650,1.15454288,101560.0,101550.0,0.7216]
[1734552571857,1.15454288,101560.0,101550.0,0.72137834]
[1734552572050,4e-05,101560.0,101550.0,0.72137834]
[1734552572549,4e-05,101560.0,101550.0,0.72145327]
[1734552572750,4e-05,101560.0,101550.0,0.76475354]
[1734552572951,9.41e-05,101570.0,101560.0,0.049244]
[1734552573149,9.41e-05,101570.0,101560.0,0.410044]
[1734552573346,0.1,101600.0,101560.0,1.0216]
[1734552573547,0.1,101600.0,101590.0,0.7216]
[1734552573548,1.25450288,101600.0,101590.0,0.7216]
[1734552573742,0.1,101600.0,101590.0,0.770829]
[1734552574342,0.00010901,101610.0,101600.0,0.049222]
[1734552574546,0.00010901,101610.0,101600.0,0.410022]
[1734552574751,0.00010901,101610.0,101600.0,0.70567046]
[1734552574944,0.01,101620.0,101600.0,0.6561998]
[1734552575145,0.409988,101680.0,101620.0,0.049213]
[1734552575350,1.15450288,101680.0,101660.0,0.3608]
[1734552575542,1.15450288,101680.0,101650.0,0.29557315]
[1734552575749,1.15450288,101680.0,101660.0,0.65637315]
[1734552575950,1.15450288,101680.0,101670.0,0.29557315]
[1734552576152,1.15459328,101680.0,101670.0,0.29566734]
[1734552576354,1.15459328,101680.0,101670.0,0.70565834]
[1734552576559,9.04e-05,101680.0,101670.0,0.70565834]
[1734552576851,1.15459328,101680.0,101670.0,0.36089419]
[1734552577154,9.04e-05,101680.0,101670.0,0.65646734]
[1734552577350,9.04e-05,101680.0,101670.0,1.04478772]
[1734552577549,9.04e-05,101680.0,101670.0,0.99559672]
[1734552577745,0.1,101700.0,101670.0,1.39969699]
[1734552577949,1.25450288,101700.0,101690.0,0.31132934]
[1734552578155,0.1,101700.0,101690.0,0.60580535]
[1734552578354,1.25450288,101700.0,101690.0,0.65637315]
[1734552578551,0.1,101700.0,101690.0,0.70555415]
[1734552578747,1.25450288,101700.0,101690.0,0.3608]
[1734552578950,1.25450288,101700.0,101650.0,0.40410027]
[1734552578951,0.89585545,101700.0,101650.0,0.40410027]
[1734552579148,0.3608,101670.0,101650.0,0.29557315]
[1734552579347,0.3608,101660.0,101600.0,0.09252427]
[1734552579552,0.3608,101650.0,101600.0,0.410024]
[1734552579755,0.3608,101630.0,101580.0,0.049232]
[1734552579959,0.36087924,101630.0,101620.0,0.049213]
[1734552580153,0.39552884,101630.0,101620.0,0.049213]
[1734552580353,0.03472884,101630.0,101620.0,0.34478615]
[1734552580549,0.03472884,101630.0,101620.0,0.049213]
[1734552580749,7.924e-05,101630.0,101620.0,0.64478615]
[1734552581051,0.03491026,101650.0,101630.0,0.049208]
[1734552581258,0.3608,101680.0,101640.0,0.3608]
[1734552581459,0.3608,101680.0,101660.0,0.049193]
[1734552581755,0.3608,101670.0,101630.0,0.04330027]
[1734552582055,0.0001199,101670.0,101660.0,0.049195]
[1734552582361,0.0001199,101670.0,101610.0,0.40417917]
[1734552582362,0.69583016,101670.0,101610.0,0.40417917]
[1734552582559,0.3608,101660.0,101610.0,0.70417917]
[1734552582852,0.3608,101650.0,101630.0,0.049206]
[1734552583055,0.3608,101640.0,101610.0,7.89e-05]
[1734552583359,0.3608,101620.0,101610.0,7.89e-05]
[1734552583661,0.410018,101620.0,101570.0,0.049237]
[1734552583858,0.3608,101590.0,101570.0,0.049237]
[1734552584054,0.3608,101590.0,101560.0,0.05990459]
[1734552584055,0.3608,101600.0,101560.0,0.35967593]
[1734552584259,0.3608,101600.0,101570.0,0.049237]
[1734552584561,7.307e-05,101600.0,101590.0,0.00010297]
[1734552584754,7.307e-05,101600.0,101590.0,0.36090297]
[1734552584955,0.01972743,101600.0,101590.0,0.71013197]
[1734552585152,0.409997,101660.0,101620.0,0.049213]
[1734552585363,0.3608,101680.0,101630.0,0.3608]
[1734552585554,0.3608,101680.0,101640.0,0.049205]
[1734552585751,0.3608,101680.0,101650.0,0.049198]
[1734552585957,0.3608,101670.0,101650.0,0.049198]
[1734552586151,0.263984,101690.0,101660.0,0.00011432]
[1734552586357,0.11961108,101700.0,101680.0,0.3608]
[1734552586569,0.16878708,101700.0,101670.0,0.409989]
[1734552586759,0.11961108,101700.0,101690.0,0.409981]
[1734552586955,0.1,101700.0,101690.0,0.3608]
[1734552587155,0.1,101700.0,101680.0,0.049184]
[1734552587350,0.1,101700.0,101670.0,0.3608]
[1734552587555,0.1,101700.0,101690.0,0.049181]
[1734552587762,0.1,101700.0,101690.0,0.409981]
[1734552588755,0.1,101700.0,101690.0,0.770781]
[1734552588957,0.3608,101750.0,101690.0,1.0216]
[1734552589164,0.409946,101770.0,101730.0,0.409961]
[1734552589465,0.01940863,101760.0,101730.0,0.3608]
[1734552589657,0.04915,101760.0,101740.0,0.3608]
[1734552589851,0.3608,101770.0,101740.0,0.3608]
[1734552590056,0.049147,101760.0,101740.0,0.31140968]
[1734552590256,0.6609044,101770.0,101730.0,0.049161]
[1734552590461,0.0492474,101770.0,101750.0,0.33792889]
[1734552590665,0.0001044,101770.0,101750.0,0.33792889]
[1734552590857,0.0001044,101770.0,101750.0,0.74787889]
[1734552591058,0.0001044,101770.0,101760.0,0.41004545]
[1734552591565,0.0001044,101770.0,101760.0,9.845e-05]
[1734552591566,0.6609044,101770.0,101760.0,9.845e-05]
[1734552591762,0.4100464,101770.0,101760.0,9.845e-05]
[1734552591963,0.049148,101760.0,101720.0,0.06835432]
[1734552592160,0.3608,101730.0,101700.0,0.409974]
[1734552592354,0.3608,101720.0,101690.0,0.3608]
[1734552592557,0.049167,101720.0,101690.0,0.3608]
[1734552592766,0.0005,101700.0,101680.0,0.3608]
[1734552592961,0.3613,101700.0,101690.0,0.00010371]
[1734552593166,0.00060385,101700.0,101670.0,0.049189]
[1734552593365,0.41058285,101700.0,101660.0,0.40410027]
[1734552593662,0.3608,101730.0,101690.0,0.7216]
[1734552593854,0.3608,101740.0,101700.0,0.3608]
[1734552593855,0.0005,101710.0,101700.0,0.3608]
[1734552594060,0.0005,101710.0,101700.0,0.409976]
[1734552594260,0.049159,101740.0,101710.0,0.04917]
[1734552594555,0.3608,101740.0,101730.0,0.00010534]
[1734552594766,0.049157,101740.0,101730.0,0.00010534]
[1734552594966,0.00010947,101750.0,101730.0,0.66090534]
[1734552595155,0.00010947,101750.0,101740.0,0.409957]
[1734552595357,0.049134,101790.0,101760.0,0.049147]
[1734552595568,0.149131,101800.0,101780.0,0.7216]
[1734552595756,0.149131,101800.0,101790.0,0.3608]
[1734552595961,0.1,101800.0,101790.0,0.3608]
[1734552596157,0.1,101800.0,101790.0,0.67212934]
[1734552596468,0.1,101800.0,101790.0,0.67223383]
[1734552596665,0.149128,101800.0,101790.0,0.67223383]
[1734552596859,0.509928,101800.0,101790.0,0.00010449]
[1734552597057,0.449128,101800.0,101790.0,0.00010449]
[1734552597355,1.170728,101800.0,101760.0,0.3608]
[1734552597561,0.3608,101780.0,101750.0,0.3608]
[1734552597763,0.049647,101760.0,101750.0,0.3608]
[1734552597957,0.049152,101750.0,101720.0,0.3608]
[1734552598270,0.409869,101930.0,101890.0,0.01]
[1734552598566,0.3608,101920.0,101860.0,0.3608]
[1734552598758,0.4608,101900.0,101870.0,0.3608]
[1734552598966,0.4,101900.0,101870.0,0.3608]
[1734552599163,0.049089,101880.0,101870.0,0.25052934]
[1734552599366,0.3608,101880.0,101840.0,0.01000078]
[1734552599563,0.049109,101840.0,101830.0,0.3558]
[1734552599764,0.049109,101840.0,101830.0,0.62133012]
[1734552599959,0.3608,101850.0,101790.0,0.40360027]
[1734552600164,0.3608,101800.0,101780.0,0.27043184]
[1734552600366,0.3608,101790.0,101730.0,0.24006598]
[1734552600566,0.40993,101800.0,101730.0,0.24006598]
[1734552600567,0.3608,101770.0,101760.0,0.0492481]
[1734552600765,0.7216,101770.0,101760.0,0.0001011]
[1734552601467,0.3608,101790.0,101760.0,0.3492481]
[1734552601676,0.3608,101780.0,101770.0,0.049142]
[1734552602065,0.3608,101780.0,101770.0,0.349142]
[1734552602370,0.36090518,101800.0,101780.0,0.049135]
[1734552602670,0.36090518,101800.0,101790.0,0.049133]
[1734552603073,0.3608,101830.0,101810.0,0.049123]
[1734552603264,0.3608,101830.0,101820.0,0.049118]
[1734552603664,0.409905,101850.0,101820.0,0.049118]
[1734552603978,0.3613,101830.0,101780.0,0.36312]
[1734552604165,0.3608,101790.0,101780.0,0.412258]
[1734552604468,0.3608,101790.0,101780.0,0.04926317]
[1734552604668,0.6608,101790.0,101740.0,0.33770178]
[1734552604863,0.3608,101780.0,101770.0,0.049142]
[1734552605069,0.7216,101780.0,101740.0,0.33770178]
[1734552605269,0.3608,101750.0,101730.0,0.19010422]
[1734552605467,0.3608,101740.0,101730.0,0.19010422]
[1734552605662,0.3608,101740.0,101730.0,0.18854083]
[1734552605862,0.3608,101740.0,101730.0,0.00011498]
[1734552606278,0.3608,101750.0,101730.0,0.00011498]
[1734552606469,0.3608,101740.0,101730.0,0.00011498]
[1734552606874,0.7216,101740.0,101700.0,0.1]
[1734552607175,0.3608,101710.0,101700.0,0.1]
[1734552607370,0.6608,101710.0,101700.0,0.1]
[1734552607676,0.3608,101710.0,101700.0,0.149176]
[1734552607872,0.3608,101710.0,101700.0,0.10012665]
[1734552608377,0.3608,101710.0,101700.0,0.05065599]
[1734552608969,0.3608,101710.0,101680.0,0.22535]
[1734552609170,0.7216,101690.0,101680.0,0.22535]
[1734552609376,0.3608,101690.0,101680.0,0.22535]
[1734552609769,0.770781,101690.0,101650.0,0.00147602]
[1734552609962,0.3608,101660.0,101650.0,0.00147602]
[1734552610167,0.3608,101660.0,101650.0,0.05080268]
[1734552610469,0.3608,101660.0,101650.0,0.00012566]
[1734552610677,0.709996,101660.0,101610.0,0.286219]
[1734552610873,0.3608,101630.0,101620.0,0.049215]
[1734552611080,0.3608,101630.0,101600.0,0.149224]
[1734552611274,0.3608,101630.0,101600.0,0.09753379]
[1734552611578,0.3608,101610.0,101600.0,0.04830979]
[1734552611766,0.3608,101610.0,101600.0,0.04892128]
[1734552612273,0.3608,101610.0,101600.0,0.00061149]
[1734552612472,0.3608,101610.0,101570.0,0.049237]
[1734552612473,0.6608,101610.0,101570.0,0.049237]
[1734552612672,0.3608,101580.0,101560.0,0.00071814]
[1734552612874,0.7216,101570.0,101560.0,0.00071814]
[1734552613279,1.0216,101570.0,101530.0,0.2534]
[1734552613577,0.7216,101540.0,101520.0,0.049262]
[1734552613874,0.19915965,101550.0,101520.0,0.41006]
[1734552614074,0.049239,101580.0,101540.0,0.3608]
[1734552614277,0.06923711,101570.0,101540.0,0.3608]
[1734552614472,0.00012175,101570.0,101540.0,0.31139889]
[1734552614774,0.01930697,101550.0,101540.0,1e-08]
[1734552615176,0.31930697,101550.0,101540.0,1e-08]
[1734552615378,0.01930697,101550.0,101540.0,1e-08]
[1734552615568,0.31930697,101550.0,101520.0,0.3608]
[1734552615875,0.3608,101540.0,101500.0,0.149273]
[1734552616071,0.710054,101540.0,101500.0,0.1]
[1734552616271,0.3608,101520.0,101500.0,0.1]
[1734552616473,0.410068,101510.0,101500.0,0.1]
[1734552616676,0.6508,101510.0,101450.0,0.3608]
[1734552616871,0.3608,101500.0,101460.0,0.3608]
[1734552617072,0.3608,101510.0,101470.0,0.3608]
[1734552617274,0.01958458,101510.0,101500.0,0.3608]
[1734552617481,0.3608,101540.0,101500.0,0.6608]
[1734552617775,0.3608,101540.0,101520.0,6.904e-05]
[1734552617776,0.049262,101530.0,101520.0,6.904e-05]
[1734552617982,0.2564,101590.0,101520.0,0.36086904]
[1734552618177,0.049232,101590.0,101580.0,0.3608]
[1734552618677,0.47382961,101590.0,101550.0,0.69850178]
[1734552618875,0.77382961,101590.0,101550.0,0.3608]
[1734552619076,0.77393922,101590.0,101560.0,0.3608]
[1734552619383,0.41313922,101590.0,101570.0,0.3608]
[1734552619580,0.049235,101580.0,101570.0,0.3608]
[1734552619778,0.049239,101570.0,101530.0,0.3608]
[1734552619976,0.77393922,101590.0,101540.0,0.3608]
[1734552620172,0.049242,101570.0,101550.0,0.3608]
[1734552620378,0.049242,101570.0,101510.0,0.2569]
[1734552620379,0.049256,101540.0,101510.0,0.2569]
[1734552620577,0.049256,101540.0,101510.0,0.20742934]
[1734552620777,0.3,101540.0,101510.0,0.049269]
[1734552620973,0.3,101540.0,101530.0,0.3608]
[1734552621178,0.410055,101540.0,101520.0,0.3608]
[1734552621372,0.3608,101530.0,101500.0,0.1005]
[1734552621571,0.049269,101510.0,101500.0,0.1005]
[1734552621878,0.04936797,101510.0,101500.0,0.09660763]
[1734552622069,0.049277,101500.0,101450.0,0.3608]